[Event "23rd Hoogeveen Open 2019"]
[Site "Hoogeveen"]
[Date "2019.10.26"]
[Round "9.16"]
[White "Van Dael, Siem"]
[Black "Van Foreest, Machteld"]
[Result "0-1"]
[ECO "A00"]
[WhiteElo "2273"]
[BlackElo "2142"]
[Annotator "NA"]
[PlyCount "80"]
[EventDate "2019.10.19"]
[EventType "swiss"]
[EventCountry "NED"]
[SourceTitle "playchess.com"]
[Source "ChessBase"]
[SourceQuality "1"]
[TimeControl "40/5400+30:1800+30"]

1. h4 {[%emt 0:00:00]} e5 {[%emt 0:03:58]} 2. c4 {[%emt 0:00:00]} Nf6 {[%emt 0:00:43]} 3. Nc3 {[%emt 0:00:00]} Nc6 {[%emt 0:02:11]} 4. g3 {[%emt 0:00:06]} d5 {[%emt 0:01:26]} 5. cxd5 {[%emt 0:00:16]} Nxd5 {[%emt 0:00:04]} 6. Bg2 {[%emt 0:00:09]} Be6 {[%emt 0:03:41]} 7. Nf3 {[%emt 0:00:24]} f6 {[%emt 0:03:33]} 8. d3 {[%emt 0:03:06]} Qd7 {[%emt 0:02:05]} 9. O-O {[%emt 0:00:17]} O-O-O {[%emt 0:00:17]} 10. d4 {[%emt 0:01:15]} Qe8 {[%emt 0:09:09]} 11. e4 {[%emt 0:00:06]} Nxc3 {[%emt 0:01:58]} 12. bxc3 {[%emt 0:00:07]} exd4 {[%emt 0:00:59]} 13. Nxd4 {[%emt 0:02:31]} Qd7 {[%emt 0:11:03]} (13... Bc5 $5 {[%cal Rc6d4]} 14. Be3 Kb8 $15) 14. Qc2 {[%emt 0:03:12]} Nxd4 {[%emt 0:03:23]} 15. cxd4 {[%emt 0:00:06]} Qxd4 {[%emt 0:00:38]} 16. Rb1 {[%emt 0:01:01] [#]} Qd3 $1 {[%emt 0:13:27]} 17. Qb2 $17 {[%emt 0:01:07]} b6 {[%emt 0:00:32]} 18. a4 {[%emt 0:03:07]} Bc5 {[%emt 0:06:52]} 19. Bf4 {[%emt 0:11:14]} Bd4 {[%emt 0:08:48]} 20. Qb4 {[%emt 0:00:16]} Bc5 {[%emt 0:03:15]} 21. Qe1 {[%emt 0:01:01]} g5 {[%emt 0:01:12]} 22. Be3 {[%emt 0:05:22]} Bxe3 {[%emt 0:00:43]} 23. fxe3 {[%emt 0:00:05]} Rhf8 {[%emt 0:06:05]} 24. Qc1 {[%emt 0:06:23]} gxh4 {[%emt 0:10:51]} 25. Qc6 {[%emt 0:02:41]} Qc4 {[%emt 0:00:54]} 26. Qb5 {[%emt 0:11:58]} Rd2 {[%emt 0:02:42]} 27. Qxc4 {[%emt 0:05:00]} Bxc4 {[%emt 0:00:02]} 28. Rf4 {[%emt 0:00:35]} Rg8 {[%emt 0:01:44]} 29. Rf2 {[%emt 0:02:58]} Rxf2 {[%emt 0:00:11]} 30. Kxf2 {[%emt 0:00:04]} hxg3+ {[%emt 0:00:21]} 31. Kf3 {[%emt 0:00:06]} Be6 {[%emt 0:00:41]} 32. Rh1 {[%emt 0:00:16]} h5 {[%emt 0:00:07]} 33. Rh4 {[%emt 0:01:00]} Bd7 {[%emt 0:00:25]} 34. a5 {[%emt 0:01:51]} bxa5 {[%emt 0:00:17]} 35. Rh1 {[%emt 0:00:37]} a4 {[%emt 0:00:07]} 36. Kf4 {[%emt 0:00:29]} Rg4+ {[%emt 0:00:07]} 37. Kf3 {[%emt 0:00:04]} Rg5 {[%emt 0:00:22]} 38. Kf4 {[%emt 0:01:02]} a3 {[%emt 0:00:08]} 39. Rf1 {[%emt 0:01:39]} a2 {[%emt 0:00:43]} 40. Rf3 {[%emt 0:00:05]} Rg4# {[%emt 0:00:06]} 0-1

[Event "23rd Hoogeveen Open 2019"]
[Site "Hoogeveen"]
[Date "2019.10.26"]
[Round "9.17"]
[White "Djukic, Sandra"]
[Black "Vogel, Jaap"]
[Result "0-1"]
[ECO "A91"]
[WhiteElo "2179"]
[BlackElo "2123"]
[Annotator "NA"]
[PlyCount "120"]
[EventDate "2019.10.19"]
[EventType "swiss"]
[EventCountry "NED"]
[SourceTitle "playchess.com"]
[Source "ChessBase"]
[SourceQuality "1"]
[TimeControl "40/5400+30:1800+30"]

1. d4 {[%emt 0:00:00]} e6 {[%emt 0:00:00]} 2. c4 {[%emt 0:00:40]} f5 {[%emt 0:00:00]} 3. g3 {[%emt 0:00:07]} Nf6 {[%emt 0:00:29]} 4. Bg2 {[%emt 0:00:05]} c6 {[%emt 0:01:21]} 5. Nh3 {[%emt 0:01:47]} d6 {[%emt 0:01:23]} 6. O-O {[%emt 0:01:14]} Be7 {[%emt 0:03:30]} 7. Nc3 {[%emt 0:03:42]} d5 {[%emt 0:05:54]} 8. b3 {[%emt 0:05:53]} O-O {[%emt 0:01:03]} 9. Bb2 {[%emt 0:08:00]} Bd7 {[%emt 0:13:46]} 10. e3 {[%emt 0:03:28]} b5 $16 {[%emt 0:07:16]} 11. Qe2 {[%emt 0:19:21]} a6 {[%emt 0:12:00]} 12. a3 {[%emt 0:08:14]} Be8 {[%emt 0:11:11]} 13. Nf4 {[%emt 0:06:29]} Bf7 {[%emt 0:00:20]} 14. Nd3 {[%emt 0:06:18]} Nbd7 {[%emt 0:02:01]} 15. c5 {[%emt 0:19:38]} a5 {[%emt 0:04:43]} 16. f3 {[%emt 0:01:37]} Qc7 {[%emt 0:10:50]} 17. b4 {[%emt 0:03:09]} axb4 {[%emt 0:10:53]} 18. axb4 {[%emt 0:00:46]} Rxa1 {[%emt 0:02:55]} 19. Rxa1 {[%emt 0:00:47]} Re8 {[%emt 0:00:32]} 20. Nb1 {[%emt 0:08:02]} Qb7 {[%emt 0:01:08]} 21. Nd2 {[%emt 0:00:35]} Ra8 {[%emt 0:00:09]} 22. Rxa8+ {[%emt 0:00:17]} Qxa8 {[%emt 0:00:02]} 23. Nb3 {[%emt 0:00:42]} Bd8 {[%emt 0:01:07]} 24. Qc2 {[%emt 0:00:35]} Qa2 {[%emt 0:02:16]} 25. Ndc1 {[%emt 0:00:20]} Qa4 {[%emt 0:02:21]} 26. Bc3 {[%emt 0:00:04]} Bc7 {[%emt 0:01:07]} 27. Qb2 {[%emt 0:01:04]} g5 {[%emt 0:02:04]} 28. Na5 {[%emt 0:00:34]} Qd1+ {[%emt 0:00:48]} 29. Kf2 {[%emt 0:00:04]} Nb8 {[%emt 0:00:44]} 30. Qd2 {[%emt 0:00:43]} Qa4 {[%emt 0:00:32]} 31. e4 {[%emt 0:00:38]} f4 {[%emt 0:00:07]} 32. e5 {[%emt 0:00:04]} Nh5 {[%emt 0:00:21]} 33. g4 {[%emt 0:00:06]} Ng7 {[%emt 0:00:04]} 34. h4 {[%emt 0:00:48]} gxh4 {[%emt 0:02:43]} 35. Nab3 {[%emt 0:01:05]} Na6 {[%emt 0:00:29]} 36. Qxf4 {[%emt 0:00:15]} Nxb4 {[%emt 0:00:08]} 37. Qd2 {[%emt 0:00:06]} Na6 {[%emt 0:00:17]} 38. Bf1 {[%emt 0:00:54]} Bg6 {[%emt 0:00:44]} 39. Bd3 {[%emt 0:00:42]} b4 {[%emt 0:01:25]} 40. Bb2 {[%emt 0:00:31]} Bd8 {[%emt 0:00:16]} 41. f4 {[%emt 0:11:36]} Nc7 {[%emt 0:03:20]} 42. Qc2 {[%emt 0:02:41]} Bxd3 {[%emt 0:07:43]} 43. Qxd3 {[%emt 0:00:04]} h5 {[%emt 0:00:27]} 44. g5 {[%emt 0:13:34]} Nf5 {[%emt 0:04:36]} 45. Qd1 {[%emt 0:00:52]} Ng3 {[%emt 0:01:20]} 46. Kg2 {[%emt 0:01:11]} Ne8 {[%emt 0:04:52]} 47. Kh3 {[%emt 0:00:11]} Ng7 {[%emt 0:01:00]} 48. Kxh4 {[%emt 0:00:11]} N3f5+ {[%emt 0:01:36]} 49. Kh3 {[%emt 0:00:05]} Ne3 {[%emt 0:02:13]} 50. Qd3 {[%emt 0:01:17]} Ngf5 {[%emt 0:02:11]} 51. Qe2 {[%emt 0:02:53]} Ng4 {[%emt 0:00:58]} 52. Na1 {[%emt 0:01:01]} Kg7 {[%emt 0:00:59]} 53. Nab3 {[%emt 0:00:50]} Kg6 {[%emt 0:00:13]} 54. Kg2 {[%emt 0:00:26]} Nge3+ {[%emt 0:01:20]} 55. Kh3 {[%emt 0:00:24]} Nc4 {[%emt 0:01:09]} 56. Qc2 {[%emt 0:00:03]} Qb5 {[%emt 0:00:49]} 57. Nd2 {[%emt 0:00:26]} b3 {[%emt 0:01:26]} 58. Ncxb3 {[%emt 0:01:18]} Nxb2 {[%emt 0:00:15]} 59. Qxb2 {[%emt 0:00:10]} Qe2 {[%emt 0:00:07]} 60. Qc3 {[%emt 0:00:30]} Ne3 {[%emt 0:00:47]} 0-1

[Event "23rd Hoogeveen Open 2019"]
[Site "Hoogeveen"]
[Date "2019.10.26"]
[Round "9.18"]
[White "Takawira, Erick"]
[Black "Giacomini, Hector"]
[Result "1/2-1/2"]
[ECO "B19"]
[WhiteElo "2101"]
[BlackElo "2145"]
[Annotator "NA"]
[PlyCount "127"]
[EventDate "2019.10.19"]
[EventType "swiss"]
[EventCountry "NED"]
[SourceTitle "playchess.com"]
[Source "ChessBase"]
[SourceQuality "1"]
[TimeControl "40/5400+30:1800+30"]

1. e4 {[%emt 0:00:00]} c6 {[%emt 0:00:00]} 2. d4 {[%emt 0:00:00]} d5 {[%emt 0:00:00]} 3. Nc3 {[%emt 0:00:00]} dxe4 {[%emt 0:00:00]} 4. Nxe4 {[%emt 0:00:00]} Bf5 {[%emt 0:00:00]} 5. Ng3 {[%emt 0:00:00]} Bg6 {[%emt 0:00:13]} 6. h4 {[%emt 0:00:00]} h6 {[%emt 0:00:05]} 7. Nf3 {[%emt 0:00:00]} Nd7 {[%emt 0:00:25]} 8. h5 {[%emt 0:00:02]} Bh7 {[%emt 0:00:06]} 9. Bd3 {[%emt 0:00:04]} Bxd3 {[%emt 0:00:08]} 10. Qxd3 {[%emt 0:00:03]} e6 {[%emt 0:00:16]} 11. Bf4 {[%emt 0:00:06]} Ngf6 {[%emt 0:00:13]} 12. O-O-O {[%emt 0:00:07]} Be7 {[%emt 0:00:09]} 13. Ne5 {[%emt 0:00:08]} O-O {[%emt 0:03:05]} 14. Rhe1 {[%emt 0:00:06] B19: Classical Caro-Kann: 4...Bf5 main line} a5 {[%emt 0:10:52] [#]} 15. Ne4 $146 {[%emt 0:02:01]} ({Predecessor:} 15. c4 a4 16. Kb1 a3 17. b3 Qa5 18. Bd2 Bb4 19. f4 Rad8 20. Bxb4 Qxb4 {0-1 (38) Hracek,Z (2650)-Rogers,I (2580) Germany 1996}) 15... Nxe4 {[%emt 0:11:12]} 16. Qxe4 {[%emt 0:00:06]} Nf6 {[%emt 0:00:42]} 17. Qe2 {[%emt 0:00:20]} a4 {[%emt 0:09:42]} 18. Ng6 {[%emt 0:09:47]} Re8 {[%emt 0:04:13]} 19. Nxe7+ {[%emt 0:00:07]} Rxe7 {[%emt 0:00:59]} 20. Be5 {[%emt 0:00:22]} Rd7 {[%emt 0:01:50]} 21. g4 {[%emt 0:00:46]} (21. a3 $11) 21... Nh7 $11 {[%emt 0:03:36]} (21... a3 $17 22. b3 b5) 22. Qe3 {[%emt 0:07:17]} b5 {[%emt 0:05:20]} 23. Rg1 {[%emt 0:03:28]} f6 {[%emt 0:07:52]} 24. Bf4 {[%emt 0:03:40]} Re7 {[%emt 0:01:51]} 25. Qa3 {[%emt 0:03:26]} Rd7 {[%emt 0:02:28]} 26. Qc5 {[%emt 0:04:53]} Rc8 {[%emt 0:00:30]} 27. Rge1 {[%emt 0:00:57]} Rd5 {[%emt 0:01:36]} 28. Qc3 {[%emt 0:06:11]} Qd7 {[%emt 0:01:01]} 29. Be3 {[%emt 0:00:24]} Rd8 {[%emt 0:01:00]} 30. Rd3 {[%emt 0:06:00]} f5 {[%emt 0:05:26]} 31. gxf5 {[%emt 0:04:08]} Rxf5 {[%emt 0:01:03]} 32. Rg1 {[%emt 0:01:18]} Rxh5 {[%emt 0:07:58]} 33. Bf4 {[%emt 0:01:33]} Qd5 {[%emt 0:01:58]} 34. Rdg3 {[%emt 0:01:15]} Rd7 {[%emt 0:00:47]} 35. b3 {[%emt 0:09:22]} Nf6 {[%emt 0:02:05]} 36. Qe3 {[%emt 0:04:49]} Kh7 {[%emt 0:03:08]} 37. Be5 {[%emt 0:00:48]} Rf5 {[%emt 0:06:44]} 38. Rg6 {[%emt 0:01:23]} axb3 {[%emt 0:01:57]} 39. axb3 {[%emt 0:00:19]} Qf3 {[%emt 0:01:21]} 40. R1g2 {[%emt 0:07:15]} Qxe3+ {[%emt 0:04:18]} 41. fxe3 {[%emt 0:30:01]} h5 {[%emt 0:33:20]} 42. e4 {[%emt 0:06:21]} Rf1+ {[%emt 0:00:00]} 43. Kb2 {[%emt 0:00:00]} Rf7 {[%emt 0:00:00]} 44. R6g5 {[%emt 0:00:00]} Rh1 {[%emt 0:00:00]} 45. Bxf6 {[%emt 0:00:00]} gxf6 {[%emt 0:00:00]} 46. Rc5 {[%emt 0:00:00]} Kh6 {[%emt 0:00:00]} 47. Rxc6 {[%emt 0:00:00]} h4 {[%emt 0:00:00]} 48. Rxe6 {[%emt 0:00:00]} h3 {[%emt 0:00:00]} 49. Rg3 {[%emt 0:00:00]} Kh5 {[%emt 0:00:00]} 50. Re8 {[%emt 0:00:00]} Kh4 {[%emt 0:00:00]} 51. Rf3 {[%emt 0:13:18]} Kg4 {[%emt 0:00:00]} 52. Rf5 {[%emt 0:00:54]} Rg7 {[%emt 0:00:00]} 53. Rh8 {[%emt 0:00:56]} Kg3 {[%emt 0:00:00]} 54. Rxf6 {[%emt 0:01:47]} Rg4 {[%emt 0:01:05]} 55. d5 {[%emt 0:01:22]} Rxe4 {[%emt 0:00:29]} 56. Rg6+ {[%emt 0:01:35]} Rg4 {[%emt 0:00:12]} 57. Rxg4+ {[%emt 0:02:06]} Kxg4 {[%emt 0:00:06]} 58. c4 {[%emt 0:00:59]} b4 {[%emt 0:01:16]} 59. d6 {[%emt 0:01:03]} Rd1 {[%emt 0:02:25]} 60. c5 {[%emt 0:00:17]} Rd2+ {[%emt 0:00:24]} 61. Kb1 {[%emt 0:01:21]} Rd1+ {[%emt 0:01:22]} 62. Kb2 {[%emt 0:02:00]} Rd2+ {[%emt 0:00:07]} 63. Kb1 {[%emt 0:02:12]} Rd1+ {[%emt 0:00:23]} 64. Kb2 {[%emt 0:01:19]} 1/2-1/2

[Event "23rd Hoogeveen Open 2019"]
[Site "Hoogeveen"]
[Date "2019.10.26"]
[Round "9.19"]
[White "Sparenberg, Erik"]
[Black "Ypma, Jord"]
[Result "1/2-1/2"]
[ECO "D10"]
[WhiteElo "2142"]
[BlackElo "2013"]
[Annotator "NA"]
[PlyCount "38"]
[EventDate "2019.10.19"]
[EventType "swiss"]
[EventCountry "NED"]
[SourceTitle "playchess.com"]
[Source "ChessBase"]
[SourceQuality "1"]
[TimeControl "40/5400+30:1800+30"]

1. d4 {[%emt 0:07:29]} d5 {[%emt 0:00:00]} 2. c4 {[%emt 0:00:05]} c6 {[%emt 0:00:00]} 3. Nc3 {[%emt 0:01:13]} Nf6 {[%emt 0:00:00]} 4. cxd5 {[%emt 0:00:49]} cxd5 {[%emt 0:00:03]} 5. Bf4 {[%emt 0:00:48]} Nc6 {[%emt 0:00:19]} 6. e3 {[%emt 0:00:14]} a6 {[%emt 0:00:04]} 7. Bd3 {[%emt 0:00:44]} Bg4 {[%emt 0:00:23]} 8. f3 {[%emt 0:06:58]} Bh5 {[%emt 0:00:21]} 9. Nge2 {[%emt 0:02:48]} e6 {[%emt 0:00:22]} 10. O-O {[%emt 0:00:42]} Be7 {[%emt 0:01:27]} 11. Rc1 {[%emt 0:02:54]} O-O {[%emt 0:02:53]} 12. Na4 {[%emt 0:01:51]} Nd7 {[%emt 0:04:28]} 13. Bg3 {[%emt 0:08:54]} Bg5 {[%emt 0:05:16]} 14. Nf4 {[%emt 0:10:18]} Bg6 $11 {[%emt 0:00:49]} 15. Qe2 {[%emt 0:03:44]} Bxf4 {[%emt 0:28:29]} 16. Bxf4 {[%emt 0:00:08]} Qf6 {[%emt 0:00:11]} 17. Nc5 {[%emt 0:06:02]} Nxc5 {[%emt 0:00:50]} 18. dxc5 {[%emt 0:01:05]} e5 {[%emt 0:05:49]} 19. Bg3 {[%emt 0:02:45]} Qd8 {[%emt 0:01:38]} 1/2-1/2

[Event "23rd Hoogeveen Open 2019"]
[Site "Hoogeveen"]
[Date "2019.10.26"]
[Round "9.20"]
[White "Advait, Bagri"]
[Black "Faber, Hugo"]
[Result "1-0"]
[ECO "C05"]
[WhiteElo "2231"]
[BlackElo "2077"]
[Annotator "NA"]
[PlyCount "35"]
[EventDate "2019.10.19"]
[EventType "swiss"]
[EventCountry "NED"]
[SourceTitle "playchess.com"]
[Source "ChessBase"]
[SourceQuality "1"]
[TimeControl "40/5400+30:1800+30"]

1. e4 {[%emt 0:00:00]} e6 {[%emt 0:00:00]} 2. d4 {[%emt 0:00:00]} d5 {[%emt 0:00:00]} 3. Nd2 {[%emt 0:00:30]} Nf6 {[%emt 0:00:24]} 4. e5 {[%emt 0:00:13]} Ne4 {[%emt 0:00:25]} 5. Bd3 {[%emt 0:09:51]} Nxd2 {[%emt 0:00:23]} 6. Bxd2 {[%emt 0:00:12]} c5 {[%emt 0:00:26]} 7. dxc5 {[%emt 0:11:04]} Nc6 {[%emt 0:04:27]} 8. Nf3 {[%emt 0:02:10]} Bxc5 {[%emt 0:00:28]} 9. O-O {[%emt 0:01:10]} Be7 {[%emt 0:06:55]} 10. c4 {[%emt 0:05:31]} dxc4 {[%emt 0:11:18]} 11. Bxc4 {[%emt 0:00:26]} Bd7 $16 {[%emt 0:10:15]} 12. Qe2 {[%emt 0:02:05]} Qb6 {[%emt 0:10:03]} 13. Be3 {[%emt 0:09:47]} Qa5 {[%emt 0:04:15]} 14. Rfd1 {[%emt 0:02:23]} O-O-O {[%emt 0:03:21]} 15. a3 {[%emt 0:09:18]} Kb8 {[%emt 0:03:43]} 16. b4 {[%emt 0:00:54]} Qc7 {[%emt 0:00:07]} 17. Rdc1 {[%emt 0:02:36]} b6 {[%emt 0:07:22]} 18. Ba6 {[%emt 0:01:35]} 1-0

[Event "23rd Hoogeveen Open 2019"]
[Site "Hoogeveen"]
[Date "2019.10.26"]
[Round "9.21"]
[White "Adocchio, Giampiero"]
[Black "Stock, Andreas"]
[Result "1-0"]
[ECO "A43"]
[WhiteElo "2184"]
[BlackElo "2076"]
[Annotator "NA"]
[PlyCount "93"]
[EventDate "2019.10.19"]
[EventType "swiss"]
[EventCountry "NED"]
[SourceTitle "playchess.com"]
[Source "ChessBase"]
[SourceQuality "1"]
[TimeControl "40/5400+30:1800+30"]

1. d4 {[%emt 0:00:00]} Nf6 {[%emt 0:00:00]} 2. Nf3 {[%emt 0:00:00]} c5 {[%emt 0:00:02]} 3. d5 {[%emt 0:00:00]} b5 {[%emt 0:00:13]} 4. c3 {[%emt 0:00:01]} e6 {[%emt 0:07:26]} 5. e4 {[%emt 0:00:06]} Nxe4 {[%emt 0:02:09]} 6. Bxb5 {[%emt 0:00:06]} Bb7 {[%emt 0:05:01]} 7. dxe6 {[%emt 0:00:16]} fxe6 {[%emt 0:00:17]} 8. Qe2 {[%emt 0:00:19]} Be7 {[%emt 0:01:48]} 9. Bd3 {[%emt 0:00:28]} Nf6 {[%emt 0:01:15]} 10. O-O {[%emt 0:00:40]} O-O $14 {[%emt 0:01:05]} 11. Nbd2 {[%emt 0:02:50]} a5 {[%emt 0:13:27]} 12. a4 {[%emt 0:03:39]} Ba6 {[%emt 0:05:41]} 13. Nc4 {[%emt 0:01:09]} Nc6 {[%emt 0:06:03]} 14. Rd1 {[%emt 0:06:27]} Qc7 {[%emt 0:06:54]} 15. g3 {[%emt 0:03:36]} Nd5 {[%emt 0:04:35]} 16. Qe4 {[%emt 0:08:49]} Rf5 {[%emt 0:06:52]} 17. Nh4 {[%emt 0:12:12]} Nf6 {[%emt 0:04:55]} 18. Qe2 {[%emt 0:01:16]} Rd5 {[%emt 0:01:50]} 19. b3 {[%emt 0:02:31]} Qb7 {[%emt 0:12:54]} 20. Ra3 {[%emt 0:04:11]} Bxc4 {[%emt 0:06:31]} 21. bxc4 {[%emt 0:00:27]} Rh5 {[%emt 0:01:02]} 22. f4 {[%emt 0:04:32]} e5 {[%emt 0:02:03]} 23. Be4 {[%emt 0:06:26]} exf4 {[%emt 0:01:18]} 24. Bd5+ {[%emt 0:00:09]} Kh8 {[%emt 0:00:57]} 25. Bxf4 {[%emt 0:01:20]} Re8 {[%emt 0:02:02]} 26. Bf7 {[%emt 0:02:33]} Rxh4 {[%emt 0:00:59]} 27. gxh4 {[%emt 0:02:34]} Rf8 {[%emt 0:00:20]} 28. Bd5 {[%emt 0:00:08]} Nxd5 {[%emt 0:00:36]} 29. cxd5 {[%emt 0:00:05]} Rxf4 {[%emt 0:00:13]} 30. dxc6 {[%emt 0:00:07]} Qxc6 {[%emt 0:02:50]} 31. c4 {[%emt 0:00:11]} Re4 {[%emt 0:02:17]} 32. Qg2 {[%emt 0:03:23]} Bf6 {[%emt 0:00:14]} 33. Rad3 {[%emt 0:02:19]} Bd4+ {[%emt 0:00:30]} 34. Kh1 {[%emt 0:00:06]} Qe6 {[%emt 0:00:15]} 35. Rf1 {[%emt 0:00:48]} h6 {[%emt 0:00:57]} 36. Qc2 {[%emt 0:04:04]} Bf6 {[%emt 0:01:25]} 37. Rxd7 {[%emt 0:02:13]} Qxc4 {[%emt 0:00:44]} 38. Qb1 {[%emt 0:00:13]} Qe2 {[%emt 0:00:37]} 39. Rdd1 {[%emt 0:04:13]} Qg4 {[%emt 0:00:39]} 40. Rxf6 {[%emt 0:01:15]} gxf6 {[%emt 0:00:25]} 41. Rd8+ {[%emt 0:30:23]} Kh7 {[%emt 0:30:38]} 42. Qb7+ {[%emt 0:00:08]} Kg6 {[%emt 0:00:00]} 43. Rg8+ {[%emt 0:00:00]} Kh5 {[%emt 0:00:00]} 44. Rxg4 {[%emt 0:00:00]} Rxg4 {[%emt 0:00:00]} 45. Qb5 {[%emt 0:00:00]} Kxh4 {[%emt 0:00:00]} 46. Qxa5 {[%emt 0:00:00]} c4 {[%emt 0:00:00]} 47. Qc3 {[%emt 0:00:00]} 1-0

[Event "23rd Hoogeveen Open 2019"]
[Site "Hoogeveen"]
[Date "2019.10.26"]
[Round "9.22"]
[White "Boersma, Jan"]
[Black "De Boer, Bas"]
[Result "1/2-1/2"]
[ECO "B30"]
[WhiteElo "2070"]
[BlackElo "2142"]
[Annotator "ChessBase"]
[PlyCount "27"]
[EventDate "2019.10.19"]
[EventType "swiss"]
[EventCountry "NED"]
[SourceTitle "playchess.com"]
[Source "ChessBase"]
[SourceQuality "1"]
[TimeControl "40/5400+30:1800+30"]

1. e4 {[%emt 0:00:00]} c5 {[%emt 0:00:00]} 2. Nf3 {[%emt 0:00:22]} e6 {[%emt 0:00:00]} 3. Nc3 {[%emt 0:00:16]} Nc6 {[%emt 0:00:00]} 4. Bb5 {[%emt 0:00:07]} Nge7 {[%emt 0:00:46]} 5. O-O {[%emt 0:00:13]} a6 {[%emt 0:00:10]} 6. Bxc6 {[%emt 0:00:20]} Nxc6 {[%emt 0:00:04]} 7. d4 {[%emt 0:00:40]} cxd4 {[%emt 0:00:08]} 8. Nxd4 {[%emt 0:00:02]} Qc7 {[%emt 0:00:12]} 9. Re1 {[%emt 0:00:35]} Bd6 {[%emt 0:02:54]} 10. h3 {[%emt 0:00:26]} Nxd4 {[%emt 0:03:02]} 11. Qxd4 {[%emt 0:00:05]} Be5 {[%emt 0:00:07]} 12. Qd3 {[%emt 0:09:54]} b5 {[%emt 0:04:12]} 13. Be3 {[%emt 0:03:07]} O-O {[%emt 0:04:08]} 14. Bd4 {[%emt 0:01:29]} 1/2-1/2

[Event "23rd Hoogeveen Open 2019"]
[Site "Hoogeveen"]
[Date "2019.10.26"]
[Round "9.23"]
[White "Van der Velde, Henk"]
[Black "Albers, Sasa"]
[Result "1/2-1/2"]
[ECO "A27"]
[WhiteElo "2118"]
[BlackElo "1975"]
[Annotator "NA"]
[PlyCount "96"]
[EventDate "2019.10.19"]
[EventType "swiss"]
[EventCountry "NED"]
[SourceTitle "playchess.com"]
[Source "ChessBase"]
[SourceQuality "1"]
[TimeControl "40/5400+30:1800+30"]

1. c4 {[%emt 0:00:00]} e5 {[%emt 0:00:00]} 2. g3 {[%emt 0:00:00]} Nc6 {[%emt 0:00:00]} 3. Nc3 {[%emt 0:00:01]} f5 {[%emt 0:00:00]} 4. Nf3 {[%emt 0:00:28]} Nf6 {[%emt 0:00:39]} 5. d4 {[%emt 0:00:16]} e4 {[%emt 0:01:11]} 6. Nh4 {[%emt 0:00:13]} d6 {[%emt 0:06:59]} 7. Bh3 {[%emt 0:01:07]} g6 {[%emt 0:00:28]} 8. Bg5 {[%emt 0:03:01]} Bg7 {[%emt 0:00:17]} 9. Qd2 {[%emt 0:14:45]} O-O {[%emt 0:00:15]} 10. O-O {[%emt 0:04:29]} Qe8 {[%emt 0:03:33]} 11. Rad1 {[%emt 0:13:08]} Qf7 {[%emt 0:01:13]} 12. b3 {[%emt 0:02:17]} Bd7 {[%emt 0:04:18]} 13. Ng2 {[%emt 0:11:07]} Rae8 $11 {[%emt 0:03:09]} 14. Bh6 {[%emt 0:03:09]} Nh5 {[%emt 0:15:15]} 15. Bxg7 {[%emt 0:02:29]} Qxg7 {[%emt 0:02:04]} 16. Nf4 {[%emt 0:08:44]} Nxf4 {[%emt 0:00:34]} 17. gxf4 {[%emt 0:00:01]} Nd8 {[%emt 0:09:36]} 18. e3 {[%emt 0:07:57]} Nf7 {[%emt 0:03:19]} 19. Bg2 {[%emt 0:05:02]} c6 {[%emt 0:03:42]} 20. Kh1 {[%emt 0:02:51]} Nh6 {[%emt 0:00:35]} 21. Rg1 {[%emt 0:05:29]} Ng4 {[%emt 0:01:19]} 22. Bh3 {[%emt 0:00:35]} Qh6 {[%emt 0:02:42]} 23. Bxg4 {[%emt 0:01:13]} fxg4 {[%emt 0:00:01]} 24. Ne2 {[%emt 0:00:53]} d5 {[%emt 0:01:56]} 25. cxd5 {[%emt 0:01:08]} cxd5 {[%emt 0:00:05]} 26. Qa5 {[%emt 0:00:15]} Bc6 {[%emt 0:00:37]} 27. Ng3 {[%emt 0:00:55]} Qg7 {[%emt 0:01:50]} 28. a4 {[%emt 0:01:03]} b6 {[%emt 0:02:04]} 29. Qb4 {[%emt 0:00:44]} Qd7 {[%emt 0:00:35]} 30. Rc1 {[%emt 0:00:38]} Rc8 {[%emt 0:00:26]} 31. Rc2 {[%emt 0:01:52]} Bb7 {[%emt 0:01:05]} 32. Rgc1 {[%emt 0:00:09]} Ba6 {[%emt 0:03:24]} 33. Kg2 {[%emt 0:01:19]} h5 {[%emt 0:02:46]} 34. Rxc8 {[%emt 0:02:32]} Rxc8 {[%emt 0:00:08]} 35. Rxc8+ {[%emt 0:00:01]} Bxc8 {[%emt 0:00:03]} 36. Ne2 {[%emt 0:00:21]} g3 {[%emt 0:01:39]} 37. fxg3 {[%emt 0:02:29]} Qh3+ {[%emt 0:00:15]} 38. Kg1 {[%emt 0:00:39]} Bg4 {[%emt 0:00:26]} 39. Qe1 {[%emt 0:00:07]} Bf3 {[%emt 0:01:11]} 40. Qf1 {[%emt 0:01:27]} Qg4 {[%emt 0:01:36]} 41. Kf2 {[%emt 0:35:02]} h4 {[%emt 0:37:30]} 42. Nc3 {[%emt 0:00:00]} Qc8 {[%emt 0:00:00]} 43. Qb5 {[%emt 0:00:00]} hxg3+ {[%emt 0:00:00]} 44. hxg3 {[%emt 0:00:00]} Qxc3 {[%emt 0:00:00]} 45. Qe8+ {[%emt 0:00:00]} Kh7 {[%emt 0:00:00]} 46. Qe7+ {[%emt 0:00:00]} Kh8 {[%emt 0:00:00]} 47. Qf8+ {[%emt 0:00:00]} Kh7 {[%emt 0:00:00]} 48. Qe7+ {[%emt 0:00:00]} Kg8 {[%emt 0:00:00]} 1/2-1/2

[Event "23rd Hoogeveen Open 2019"]
[Site "Hoogeveen"]
[Date "2019.10.26"]
[Round "9.24"]
[White "Nicolai, Amir"]
[Black "De Winter, Arthur"]
[Result "1-0"]
[ECO "B20"]
[WhiteElo "2117"]
[BlackElo "1896"]
[Annotator "NA"]
[PlyCount "41"]
[EventDate "2019.10.19"]
[EventType "swiss"]
[EventCountry "NED"]
[SourceTitle "playchess.com"]
[Source "ChessBase"]
[SourceQuality "1"]
[TimeControl "40/5400+30:1800+30"]

1. e4 {[%emt 0:00:00]} c5 {[%emt 0:00:00]} 2. b4 {[%emt 0:00:00]} cxb4 {[%emt 0:00:02]} 3. a3 {[%emt 0:00:00]} d5 {[%emt 0:01:01]} 4. exd5 {[%emt 0:00:00]} Qxd5 {[%emt 0:00:12]} 5. Nf3 {[%emt 0:00:00]} e6 {[%emt 0:05:29]} 6. Bb2 {[%emt 0:06:24]} bxa3 {[%emt 0:04:43]} 7. Nxa3 {[%emt 0:01:01]} Nc6 {[%emt 0:00:31]} 8. Nb5 {[%emt 0:04:39]} Qd8 {[%emt 0:00:32]} 9. Ne5 {[%emt 0:02:52]} Nf6 $14 {[%emt 0:05:41]} 10. Qf3 {[%emt 0:13:05]} Nb4 {[%emt 0:06:54]} 11. Rxa7 {[%emt 0:09:03]} Rxa7 {[%emt 0:14:58]} 12. Nxa7 {[%emt 0:01:05]} Bc5 {[%emt 0:10:31]} 13. Bb5+ {[%emt 0:02:17]} Kf8 {[%emt 0:00:53]} 14. Nxc8 {[%emt 0:02:18]} Qxc8 {[%emt 0:12:14]} 15. O-O {[%emt 0:01:43]} Be7 {[%emt 0:02:19]} 16. Ra1 {[%emt 0:08:35]} Kg8 {[%emt 0:03:09]} 17. c4 {[%emt 0:12:04]} h5 {[%emt 0:08:51]} 18. Ra7 {[%emt 0:05:08]} Qd8 {[%emt 0:00:49]} 19. d4 {[%emt 0:02:40]} Nc2 {[%emt 0:09:52]} 20. Qxb7 {[%emt 0:01:11]} Nxd4 {[%emt 0:00:13]} 21. Ra8 {[%emt 0:00:54]} 1-0